bitfinex/quotes_ETHUSD_20220311
["timestamp","ask_amount","ask_price","bid_price","bid_amount"]
[1647012600882,3.0,2591.7,2590.9,0.96497]
[1647012600883,7.71217213,2591.6,2590.9,0.96497]
[1647012601083,0.96504,2591.1,2590.5,1.93011]
[1647012601332,0.96504,2591.1,2590.4,0.82931377]
[1647012601333,8.01217213,2591.0,2590.9,1.0]
[1647012601933,7.71217213,2591.0,2590.9,1.0]
[1647012602634,7.71217213,2591.0,2590.7,0.96505]
[1647012603235,0.05880795,2590.9,2590.7,0.96505]
[1647012603435,7.71217213,2590.8,2590.7,0.96505]
[1647012603633,0.05399885,2590.7,2590.6,1.92992]
[1647012603831,0.05399885,2590.7,2590.5,0.96493]
[1647012604433,7.71217213,2590.8,2590.5,0.96493]
[1647012604633,8.67712213,2590.8,2590.5,0.96493]
[1647012605278,8.67712213,2590.8,2590.5,0.96900138]
[1647012606379,0.06152838,2590.7,2590.5,0.96493]
[1647012606581,0.06152838,2590.7,2590.5,0.96900138]
[1647012607582,7.71217213,2590.8,2590.5,0.96900138]
[1647012607885,7.71217213,2590.8,2590.5,0.96867706]
[1647012608387,7.71217213,2590.8,2590.5,1.93337706]
[1647012608584,7.71217213,2590.8,2590.5,1.92963]
[1647012608831,7.71217213,2590.8,2590.5,1.93323962]
[1647012609030,3.29971826,2590.6,2590.5,1.93323962]
[1647012609428,3.11385243,2590.6,2590.5,1.93323962]
[1647012609830,1.92947,2591.1,2590.5,1.93323962]
[1647012609831,1.1371,2592.1,2590.7,6.5]
[1647012610034,0.05490901,2592.2,2591.3,0.01258527]
[1647012610435,0.38940705,2592.3,2591.3,0.01258527]
[1647012610635,0.38940705,2592.3,2591.3,0.20651564]
[1647012610832,0.38940705,2592.3,2592.2,1.11333791]
[1647012611041,0.3858,2592.3,2592.2,1.19849672]
[1647012611234,3.54474697,2593.2,2592.1,0.96422]
[1647012611436,0.00363904,2592.3,2592.1,0.96422]
[1647012612476,0.9643455,2592.4,2592.1,0.96422]
[1647012612681,1.0894295,2592.7,2592.1,0.96422]
[1647012612682,0.00366843,2592.3,2592.1,0.96422]
[1647012613082,0.96793843,2592.3,2592.1,0.96422]
[1647012613484,1.26427,2592.3,2592.1,0.96422]
[1647012613685,0.96427,2592.3,2592.1,0.96422]
[1647012613881,1.26793843,2592.3,2592.1,0.96422]
[1647012614284,1.26793843,2592.3,2592.2,1.07894802]
[1647012614683,1.26427,2592.3,2592.2,1.07894802]
[1647012615085,1.26793451,2592.3,2592.2,1.07894802]
[1647012615498,0.30366451,2592.3,2592.2,1.07894802]
[1647012615885,0.00366451,2592.3,2592.2,1.07894802]
[1647012616334,0.00348499,2592.4,2592.2,3.00725802]
[1647012616730,0.00348499,2592.4,2592.2,1.92831]
[1647012617234,0.96418,2592.5,2592.2,1.92831]
[1647012617235,1.26418,2592.5,2592.2,1.92831]
[1647012617430,0.00348497,2592.4,2592.2,1.92750834]
[1647012618134,1.16766497,2592.5,2592.2,1.92750834]
[1647012618532,0.00349133,2592.4,2592.3,0.8917561]
[1647012619534,0.9641,2592.7,2592.3,0.8917561]
[1647012619733,0.05113207,2593.0,2592.4,0.96408]
[1647012620585,0.35113207,2593.0,2592.4,0.96408]
[1647012620787,0.05113207,2593.0,2592.4,0.96408]
[1647012620988,1.01517207,2593.0,2592.4,1.92814]
[1647012621390,1.97929687,2593.0,2592.4,1.92814]
[1647012621692,1.01517207,2593.0,2592.4,0.96406]
[1647012621890,0.04316419,2592.8,2592.4,0.96406]
[1647012622090,0.96433,2592.7,2592.4,0.96406]
[1647012622289,0.04987598,2592.6,2592.4,0.96406]
[1647012623289,0.05394571,2592.6,2592.4,0.96406]
[1647012623489,0.00406973,2592.6,2592.4,0.96406]
[1647012624338,0.05328792,2592.6,2592.4,0.96406]
[1647012624533,0.05735765,2592.6,2592.4,0.96406]
[1647012625433,0.05328792,2592.6,2592.4,0.96406]
[1647012625833,0.65921461,2592.8,2592.4,0.96406]
[1647012626034,1.92865,2592.9,2592.4,0.96406]
[1647012626838,0.96433,2592.7,2592.4,0.96406]
[1647012628586,0.96433,2592.7,2592.4,1.93386881]
[1647012628985,0.96433,2592.7,2592.4,0.96406]
[1647012629185,0.96333,2592.7,2592.4,0.96406]
[1647012630685,0.96726227,2592.7,2592.4,0.96406]
[1647012631746,0.96333,2592.7,2592.4,0.96406]
[1647012632049,0.96725494,2592.7,2592.4,0.96406]
[1647012632445,0.81585052,2592.6,2592.4,0.96406]
[1647012632847,1.26333,2592.7,2592.4,0.96406]
[1647012633047,1.26725494,2592.7,2592.4,0.96406]
[1647012633246,0.96725494,2592.7,2592.4,0.96406]
[1647012633847,1.09122972,2592.5,2592.3,1.92812]
[1647012634047,2.05550972,2592.5,2592.3,1.92812]
[1647012634447,1.26428,2592.5,2592.3,1.92812]
[1647012634650,0.96428,2592.5,2592.3,1.92812]
[1647012634847,1.26428,2592.5,2592.3,1.92812]
[1647012635885,1.26428,2592.5,2592.4,0.08357785]
[1647012636084,1.26428,2592.5,2592.3,1.92812]
[1647012637788,1.26428,2592.5,2591.3,0.25]
[1647012637789,1.11902555,2592.2,2591.3,0.25]
[1647012637989,1.11902555,2592.2,2591.5,4.85714]
[1647012637990,0.06422639,2592.0,2591.5,4.85714]
[1647012638187,7.7168,2591.9,2591.5,4.85714]
[1647012638386,0.06941122,2591.8,2591.5,1.96476]
[1647012638587,7.7168,2591.7,2591.5,1.96476]
[1647012638839,0.06162128,2591.6,2591.5,1.96476]
[1647012639036,0.06162128,2591.6,2591.5,1.0]
[1647012640545,3.56162128,2591.6,2591.5,1.0]
[1647012640744,0.05961291,2591.4,2591.3,1.92948]
[1647012641144,7.77641291,2591.4,2591.3,1.92948]
[1647012641343,7.7168,2591.4,2591.3,1.92948]
[1647012641544,11.2168,2591.4,2591.3,1.92948]
[1647012641742,12.2168,2591.4,2591.3,1.92948]
[1647012642143,7.7168,2591.4,2591.3,1.92948]
[1647012643780,8.7168,2591.4,2591.3,1.92948]
[1647012643981,7.7168,2591.4,2591.3,1.92948]
[1647012646936,8.53348857,2591.4,2591.3,1.92948]
[1647012647338,8.83348857,2591.4,2591.3,1.92948]
[1647012647536,8.83348857,2591.4,2591.2,0.00406351]
[1647012647741,9.6461988,2591.4,2591.2,0.00406351]
[1647012647940,8.68149,2591.4,2591.2,0.00406351]
[1647012648337,8.68149,2591.4,2591.1,0.96473]
[1647012648741,8.68149,2591.4,2591.2,0.00406355]
[1647012649143,8.68149,2591.4,2591.2,1.46806355]
[1647012649344,7.7168,2591.4,2591.2,0.00406355]
[1647012649546,7.7168,2591.4,2591.1,3.0703814]
[1647012649993,7.7168,2591.4,2591.2,0.00406355]
[1647012650783,7.7168,2591.4,2591.1,4.0349114]
[1647012650984,7.7168,2591.4,2591.2,0.00406374]
[1647012651786,1.93037,2591.4,2591.2,0.00406374]
[1647012651985,1.74591156,2591.4,2591.1,4.4959114]
[1647012652386,1.74591156,2591.4,2591.2,0.00406374]
[1647012653187,1.74591156,2591.4,2591.1,2.92926]
[1647012653388,1.81082194,2591.4,2591.2,0.00406374]
[1647012653591,0.07408106,2591.3,2591.2,0.00406374]
[1647012654233,0.07408106,2591.3,2591.1,0.96473]
[1647012654635,0.07408106,2591.3,2591.1,0.96879376]
[1647012655835,0.07408106,2591.3,2591.1,0.9687938]
[1647012656638,1.03436883,2591.2,2591.1,0.9687938]
[1647012656839,1.03436883,2591.2,2591.1,0.96473]
[1647012657039,1.03436883,2591.2,2591.1,0.96823693]
[1647012657891,1.33436883,2591.2,2591.1,0.96473]
[1647012658299,1.33436883,2591.2,2591.0,0.96823697]
[1647012658300,3.26417003,2591.2,2591.0,0.96823697]
[1647012658497,3.56417003,2591.2,2591.0,0.96823697]
[1647012659096,3.56417003,2591.2,2591.0,0.96473]
[1647012659297,6.21090026,2591.1,2591.0,0.003507]
[1647012659500,5.24591156,2591.1,2591.0,0.003507]
[1647012659697,6.54591156,2591.1,2591.0,0.003507]
[1647012660300,6.58178215,2591.1,2590.5,1.93006]
[1647012660497,0.8559064,2590.7,2590.5,1.93006]
[1647012660699,2.1210073,2590.7,2590.5,1.93006]
[1647012661334,2.1210073,2590.7,2590.3,0.96502]
[1647012661539,2.7859573,2590.7,2590.3,0.96502]
[1647012661739,3.0859573,2590.7,2590.3,0.96502]
[1647012661940,3.0859573,2590.7,2590.5,0.00406792]
[1647012662338,3.0859573,2590.7,2590.5,0.96908792]
[1647012662738,3.0859573,2590.7,2590.5,0.96502]
[1647012663042,3.0859573,2590.7,2590.5,0.96908792]
[1647012663236,0.3,2590.6,2590.5,0.96908792]
[1647012663441,0.3,2590.6,2590.5,0.00406792]
[1647012663637,0.31,2590.6,2590.5,0.00406792]
[1647012664039,3.205363,2590.6,2590.3,0.96502]
[1647012664236,3.195363,2590.6,2590.3,0.96502]
[1647012664436,1.265121,2590.6,2590.4,0.00406795]
[1647012665083,3.2403219,2590.7,2590.3,0.96502]
[1647012665485,3.0858689,2590.7,2590.4,0.00406799]
[1647012665684,0.3,2590.6,2590.4,0.00406799]
[1647012666286,1.2650612,2590.6,2590.2,0.96502]
[1647012666488,4.7650612,2590.6,2590.4,0.00406799]
[1647012666688,6.5,2590.5,2590.4,0.00406799]
[1647012666886,6.5,2590.5,2589.9,0.01627499]
[1647012666887,0.31012036,2590.4,2589.9,0.01627499]
[1647012667286,0.96543,2590.0,2589.9,0.01627499]
[1647012667487,6.21134156,2590.0,2589.9,0.01627499]
[1647012667685,0.062159,2589.9,2589.7,0.964]
[1647012667886,0.062159,2589.9,2589.3,1.93074]
[1647012668186,1.01697291,2589.4,2589.3,1.93074]
[1647012668488,0.3,2589.4,2589.3,1.93074]
[1647012668749,0.3,2589.4,2589.2,0.964]
[1647012668750,0.3,2589.4,2589.2,1.92953]
[1647012668938,1.265509,2589.4,2589.2,1.93114802]
[1647012669137,1.265509,2589.4,2589.2,0.96714802]
[1647012669737,0.965509,2589.4,2589.2,1.93114802]
[1647012669939,0.965509,2589.4,2589.2,0.96553]
[1647012670339,0.965509,2589.4,2589.2,0.96714805]
[1647012671039,0.965509,2589.4,2589.3,0.964]
[1647012671243,1.265509,2589.4,2589.3,0.964]
[1647012674685,1.265509,2589.4,2589.3,0.9701329]
[1647012674888,6.51142056,2589.4,2589.3,0.9701329]
[1647012675089,6.51142056,2589.4,2589.3,0.9518329]
[1647012675293,4.01142056,2589.4,2589.3,0.9518329]
[1647012675489,4.01142056,2589.4,2589.2,0.00392377]
[1647012675690,8.48721056,2589.4,2588.8,0.01569742]
[1647012675890,0.9657939,2589.3,2588.3,0.96581]
[1647012676090,0.805217,2588.6,2588.3,0.96581]
[1647012676352,0.805217,2588.6,2588.0,1.93166]
[1647012676353,1.105217,2588.6,2588.0,1.93166]
[1647012676561,1.105217,2588.6,2588.1,0.9512]
[1647012676562,1.74591156,2588.5,2588.1,0.9512]
[1647012676855,2.71186156,2588.5,2588.1,0.9512]
[1647012677054,2.71186156,2588.5,2587.3,9.9173805]
[1647012677055,3.8,2588.4,2587.3,2.4488]
[1647012677355,3.8,2588.4,2587.3,2.9488]
[1647012677356,0.93673526,2587.4,2587.3,2.9488]
[1647012677554,0.93673526,2587.4,2587.3,0.5]
[1647012678359,0.93673526,2587.4,2586.9,1.93245]
[1647012678556,0.93673526,2587.4,2586.4,0.5]
[1647012678758,4.73673526,2587.4,2586.4,0.5]
[1647012678958,3.5,2587.3,2586.4,0.5]
[1647012679162,3.75,2587.3,2586.4,0.5]
[1647012679358,3.75,2587.3,2585.1,3.6902]
[1647012679359,0.84838283,2585.7,2585.4,3.86555]
[1647012679561,0.3,2585.8,2585.2,0.96663]
[1647012679760,1.74591156,2585.7,2585.2,0.96663]
[1647012679985,1.74591156,2585.7,2585.3,0.04092649]
[1647012680391,0.022032,2586.7,2585.6,4.94514876]
[1647012680592,0.91309207,2587.3,2586.6,0.01202394]
[1647012680790,3.1832,2588.2,2586.6,0.01202394]
[1647012680791,4.3565,2588.2,2586.6,0.01202394]
[1647012680989,3.9699,2588.2,2586.6,0.20595431]
[1647012681190,2.89885,2587.8,2586.6,0.19393037]
[1647012681397,2.89885,2587.8,2586.1,0.25]
[1647012681398,0.96616,2587.5,2586.1,0.25]
[1647012681590,0.96616,2587.5,2585.8,3.5]
[1647012681794,0.96616,2587.5,2586.0,1.0]
[1647012681991,3.0,2587.6,2586.1,0.88819545]
[1647012682190,2.8994134,2587.5,2586.1,0.88819545]
[1647012682392,3.06197852,2587.5,2586.7,0.00408011]
[1647012682594,0.9664154,2587.0,2586.7,0.00408011]
[1647012683192,0.9664154,2587.0,2586.6,0.9664]
[1647012683492,0.9664154,2587.0,2586.7,0.00408007]
[1647012683955,1.9328754,2587.0,2586.7,0.00408007]
[1647012684357,2.5328754,2587.0,2586.6,0.9664]
[1647012684559,1.04816036,2586.8,2586.7,0.0040761]
[1647012685560,1.04816036,2586.8,2586.4,0.96647]
[1647012685759,0.96644,2586.8,2586.4,0.96647]
[1647012685959,0.96644,2586.8,2586.6,0.00407617]
[1647012686260,2.9523,2587.3,2586.6,0.00407617]
[1647012686261,2.8991631,2587.7,2586.6,1.93673617]
[1647012686864,0.9661372,2587.6,2586.6,1.93266]
[1647012687061,1.13552567,2587.4,2587.0,0.0040759]
[1647012687260,1.13552567,2587.4,2587.1,0.96619]
[1647012687689,0.96619,2587.5,2587.1,0.96619]
[1647012687893,0.96595,2588.0,2587.2,0.19393037]
[1647012688190,0.03587059,2588.3,2587.2,0.19393037]
[1647012688390,0.03587059,2588.3,2587.3,0.96585]
[1647012688589,0.03587059,2588.3,2587.6,0.82124926]
[1647012688590,1.05409353,2588.3,2587.6,0.82124926]
[1647012688791,1.05409353,2588.3,2587.2,5.51835037]
[1647012688792,0.07428593,2588.2,2587.2,5.51835037]
[1647012688989,0.96588,2588.1,2587.2,3.58665037]
[1647012689396,1.26588,2588.1,2587.2,3.58665037]
[1647012689592,1.26588,2588.1,2587.8,0.00407933]
[1647012690188,0.91464057,2587.9,2587.8,0.00407933]
[1647012690392,0.91464057,2587.9,2587.7,0.96582]
[1647012690790,0.3,2588.0,2587.8,0.00407933]
[1647012691248,1.9318466,2588.1,2587.8,0.00407933]
[1647012691249,1.26588,2588.1,2587.8,0.00407933]
[1647012691646,1.26588,2588.1,2587.7,0.96582]
[1647012691846,0.3,2588.1,2587.8,0.00400288]
[1647012692247,0.9658,2588.4,2587.8,0.00400288]
[1647012692449,0.96584662,2588.5,2587.9,1.93154]
[1647012692450,0.36759723,2588.5,2587.9,1.93154]
[1647012692653,0.0703165,2589.0,2587.9,1.93154]
[1647012693052,0.0703165,2589.0,2588.0,0.00400275]
[1647012693453,0.88610658,2588.9,2588.2,1.04250496]
[1647012693852,0.88610658,2588.9,2588.1,0.96568]
[1647012694052,0.96572,2588.7,2588.1,0.96568]
[1647012694251,0.96572,2588.7,2588.4,0.00400246]
[1647012694453,1.26572,2588.7,2588.4,0.96968246]
[1647012694660,5.06021,2589.6,2588.4,0.96968246]
[1647012694856,0.056785,2589.4,2588.4,0.96968246]
[1647012695111,0.056785,2589.4,2588.4,0.96568]
[1647012695112,0.9656,2589.0,2588.4,0.96568]
[1647012695610,0.9656,2589.0,2588.5,0.01515059]
[1647012695611,1.00419711,2588.9,2588.5,0.01515059]
[1647012695814,0.06404262,2588.8,2588.5,0.01515059]
[1647012696011,0.06404262,2588.8,2588.3,1.90105882]
[1647012696311,3.92750652,2588.8,2588.3,1.90105882]
[1647012696511,0.07322426,2588.6,2588.3,1.90105882]
[1647012696712,2.86276962,2588.9,2588.3,1.90105882]
[1647012696713,3.16276962,2588.9,2588.3,1.90105882]
[1647012696914,2.23168,2588.9,2588.3,1.90105882]
[1647012697317,1.93168,2588.9,2588.3,1.90105882]
[1647012697512,1.98956835,2588.9,2588.3,1.90105882]
[1647012698115,1.80431679,2588.8,2588.3,1.90105882]
[1647012698512,2.10431679,2588.8,2588.3,1.90105882]
[1647012698938,2.10431679,2588.8,2588.4,0.004079]
[1647012699136,2.10431679,2588.8,2588.4,0.969739]
[1647012699338,2.10431679,2588.8,2588.4,0.004079]
[1647012699339,0.07209998,2588.7,2588.4,0.004079]
[1647012699538,0.06278811,2588.5,2588.4,0.004079]
[1647012699945,0.06278811,2588.5,2588.0,1.93171]
[1647012700238,1.32054179,2588.4,2588.3,0.00407899]
[1647012700441,7.71870179,2588.4,2588.3,0.00407899]
[1647012700640,15.44560179,2588.4,2588.3,0.00407899]
[1647012701039,16.41165519,2588.4,2588.3,0.00407899]
[1647012701238,15.44560179,2588.4,2587.3,1.9323]
[1647012701438,1.03489274,2587.4,2587.3,1.9323]
[1647012702043,1.03489274,2587.4,2586.6,1.0]
[1647012702044,1.33489274,2587.4,2586.6,1.0]
[1647012702492,2.30131274,2587.4,2586.6,1.0]
[1647012702693,1.05755984,2586.8,2586.6,1.0]
[1647012703093,2.02402984,2586.8,2586.0,4.611]
[1647012703294,3.29049054,2586.8,2586.2,0.96649]
[1647012703894,3.29049054,2586.8,2586.3,0.00393808]
[1647012704600,0.84324169,2586.4,2586.3,0.00393808]
[1647012704795,0.84324169,2586.4,2586.2,0.96649]
[1647012705696,1.26644,2586.5,2586.2,0.96649]
[1647012705896,0.3,2586.5,2586.2,0.96649]
[1647012706097,1.0,2587.3,2586.2,0.96649]
[1647012706098,0.96638,2586.7,2586.2,0.96649]
[1647012706334,0.96638,2586.7,2586.2,0.97042814]
[1647012706743,0.3,2587.4,2586.2,0.97042814]
[1647012706744,2.899221,2587.7,2586.3,4.88813925]
[1647012706939,2.899221,2587.7,2586.4,0.01249902]
[1647012707141,0.9661208,2587.7,2586.4,0.20642939]
[1647012707439,0.9661208,2587.7,2586.3,1.96616]
[1647012707440,0.96617,2587.4,2586.3,1.96616]
[1647012707642,0.96617,2587.4,2586.9,0.00375602]
[1647012708141,0.3,2587.3,2586.9,0.00375602]
[1647012708343,1.93417089,2587.2,2586.5,0.01502635]
[1647012708539,3.43322869,2587.1,2586.0,1.93329]
[1647012708741,3.43322869,2587.1,2585.8,1.0]
[1647012708742,3.0,2587.0,2585.8,1.0]
[1647012709040,3.461,2587.0,2585.8,1.0]
[1647012709238,1.3,2586.4,2585.8,1.0]
[1647012709438,1.93396,2586.2,2585.8,1.0]
[1647012709745,1.93396,2586.2,2584.9,0.3867]
[1647012709746,7.7269,2586.1,2584.9,0.3867]
[1647012709989,0.96714,2585.7,2584.7,4.4047]
[1647012710199,0.96714,2585.7,2585.0,0.04263176]
[1647012710398,0.06011907,2585.5,2585.0,0.04263176]
[1647012710697,0.0645725,2585.3,2585.0,1.0]
[1647012710897,0.0580417,2585.1,2585.0,1.0]
[1647012711396,0.3,2585.4,2585.0,1.0]
[1647012711593,1.9338439,2585.9,2585.0,1.96703]
[1647012711794,1.03682368,2585.3,2585.1,0.04206333]
[1647012712593,2.00387538,2585.3,2585.1,0.04206333]
[1647012712799,0.07213138,2585.2,2585.1,0.04206333]
[1647012714253,7.79903138,2585.2,2585.1,0.04206333]
[1647012714857,7.79903138,2585.2,2584.6,1.0]
[1647012715059,7.79903138,2585.2,2584.7,0.04433703]
[1647012715060,0.06141655,2584.9,2584.7,0.04433703]
[1647012715263,7.79648063,2584.8,2584.7,0.04433703]
[1647012715562,7.79648063,2584.8,2584.6,0.99433703]
[1647012715758,0.07336899,2584.7,2584.6,0.99433703]
[1647012716161,7.7269,2584.8,2584.6,0.99433703]
[1647012716359,0.06475782,2585.4,2584.7,9.5]
[1647012716563,5.2069,2586.4,2585.1,0.01293922]
[1647012716564,0.3869,2586.4,2585.1,0.01293922]
[1647012716762,0.1592,2587.1,2585.1,0.01293922]
[1647012716763,1.93328,2586.3,2585.1,0.01293922]
[1647012716962,0.85018326,2586.0,2585.3,0.81527412]
[1647012717161,0.07069272,2585.9,2585.4,0.96668]
[1647012717595,0.0698862,2585.9,2585.4,0.96668]
[1647012718000,0.97373041,2585.5,2585.4,0.96668]
[1647012718204,0.97291968,2585.5,2585.4,0.96668]
[1647012718400,0.97291968,2585.5,2585.4,0.91668]
[1647012718700,1.26679,2585.7,2585.4,0.91668]
[1647012718900,0.3,2585.6,2585.4,0.91668]
[1647012719099,1.26679,2585.7,2585.4,0.91668]
[1647012719402,1.0,2586.3,2585.4,0.91668]
[1647012719604,1.06499151,2586.3,2585.5,3.69393037]
[1647012719801,1.0054667,2586.1,2585.6,0.96661]
[1647012720302,0.06537198,2586.0,2585.6,0.96661]
[1647012720501,1.9721167,2586.1,2585.6,0.96661]
[1647012720705,1.0054667,2586.1,2585.6,0.96661]
[1647012720901,1.0054667,2586.1,2585.7,0.00375814]
[1647012721744,0.05873022,2586.0,2585.6,0.96661]
[1647012721943,0.05873022,2586.0,2585.8,0.00375811]
[1647012722651,1.02547022,2586.0,2585.8,0.00375811]
[1647012722849,0.96674,2586.0,2585.6,0.96661]
[1647012723049,0.06676154,2585.8,2585.6,0.96661]
[1647012724451,0.06676154,2585.8,2585.6,0.97038956]
[1647012725307,0.06676154,2585.8,2585.6,0.96661]
[1647012725605,0.07383047,2586.3,2585.6,0.97038956]
[1647012725808,4.9452,2587.1,2585.6,0.97038956]
[1647012725809,3.86709,2586.9,2585.6,0.97038956]
[1647012726006,0.06473295,2586.8,2585.6,0.97038956]
[1647012726604,0.92607354,2586.1,2585.6,1.93323]
[1647012726803,0.92607354,2586.1,2586.0,0.0037762]
[1647012727804,0.92607354,2586.1,2585.9,0.96664]
[1647012728005,0.92607354,2586.1,2585.9,0.97041625]
[1647012729044,0.92607354,2586.1,2585.9,0.96664]
[1647012729246,0.92607354,2586.1,2585.9,0.97041628]
[1647012730149,0.92607354,2586.1,2585.9,0.96664]
[1647012730450,0.92607354,2586.1,2585.9,0.97041673]
[1647012730651,0.92607354,2586.1,2585.5,1.94820918]
[1647012730652,1.22607354,2586.1,2585.5,0.01510918]
[1647012730856,2.19302354,2586.1,2585.5,0.01510918]
[1647012731055,9.66848,2586.0,2585.5,0.01510918]
[1647012731250,0.9669362,2585.9,2585.5,0.98202918]
[1647012731450,1.2669362,2585.9,2585.5,0.96692]
[1647012732150,9.96848,2586.0,2585.5,0.96692]
[1647012732151,0.96684,2585.8,2585.5,0.96692]
[1647012732352,0.3,2585.7,2585.5,0.96692]
[1647012732595,7.7346,2586.0,2585.5,0.96692]
[1647012733194,0.94457552,2585.8,2585.5,0.96692]
[1647012733394,0.94457552,2585.8,2585.5,1.93357]
[1647012734094,0.94457552,2585.8,2585.5,1.93763514]
[1647012734494,1.91125552,2585.8,2585.5,1.93763514]
[1647012734696,1.91125552,2585.8,2585.5,0.97098514]
[1647012734896,1.91125552,2585.8,2585.5,0.96692]
[1647012735299,1.91125552,2585.8,2585.5,0.97098514]
[1647012736000,0.96668,2585.8,2585.5,0.97098514]
[1647012737040,0.99703245,2585.7,2585.5,0.97098514]
[1647012737240,0.99703245,2585.7,2585.5,0.96692]
[1647012737441,0.99703245,2585.7,2585.5,1.93359]
[1647012737641,0.99703245,2585.7,2585.5,1.937345]
[1647012738042,0.96668,2585.8,2585.5,1.937345]
[1647012738441,0.96668,2585.8,2585.5,1.93359]
[1647012738847,0.96668,2585.8,2585.5,0.97055304]
[1647012739044,0.05925029,2585.7,2585.5,0.97055304]
[1647012739241,1.99297029,2585.7,2585.5,0.97055304]
[1647012739441,0.06173587,2585.6,2585.5,0.00363304]
[1647012739841,0.90264353,2585.6,2585.4,1.93372]
[1647012740098,0.07069102,2585.5,2585.4,1.93372]
[1647012740697,7.80529102,2585.5,2585.4,1.93372]
[1647012740899,0.07133722,2585.4,2585.2,1.93379]
[1647012741299,0.07133722,2585.4,2585.3,0.00394331]
[1647012741505,7.80593722,2585.4,2585.3,0.00394331]
[1647012742101,7.80593722,2585.4,2585.1,0.96708]
[1647012742302,7.7346,2585.4,2585.1,0.96708]
[1647012742503,0.07182979,2585.3,2585.2,0.00399721]
[1647012742705,7.80642979,2585.3,2585.2,0.00399721]
[1647012743303,7.7346,2585.3,2584.8,0.01599124]
[1647012743505,1.9345923,2585.2,2584.5,0.96726]
[1647012743742,0.80705411,2584.9,2584.7,0.00660611]
[1647012744146,0.06900087,2584.8,2584.7,0.00660611]
[1647012744544,0.06900087,2584.8,2584.4,0.9936]
[1647012745149,0.06900087,2584.8,2584.1,1.93464]
[1647012745549,0.06900087,2584.8,2584.1,2.92824]
[1647012745750,0.05707438,2584.5,2584.1,2.92824]
[1647012745950,0.06873053,2584.4,2584.1,2.92824]
[1647012746152,0.06873053,2584.4,2584.3,0.00407037]
[1647012746953,0.06873053,2584.4,2584.2,0.9673]
[1647012747153,0.98098101,2584.4,2584.2,0.9673]
[1647012747353,0.06012515,2584.3,2584.2,0.00407043]
[1647012748302,0.06012515,2584.3,2584.1,2.92824]
[1647012748503,1.99490515,2584.3,2584.1,2.9323105]
[1647012748702,0.07391387,2584.2,2584.1,2.9323105]
[1647012749508,0.07391387,2584.2,2584.1,2.92824]
[1647012750806,3.57391387,2584.2,2584.1,0.9936]
[1647012751005,0.07391387,2584.2,2584.1,0.9936]
[1647012752247,0.06652187,2584.8,2584.1,0.9936]
[1647012752446,8.9624,2585.3,2584.1,0.9936]
[1647012752646,0.06466086,2585.0,2584.1,0.9936]
[1647012753046,0.06466086,2585.0,2584.3,0.9672]
[1647012753047,0.83072353,2584.7,2584.3,0.9672]
[1647012753247,0.96718,2584.6,2584.5,0.00159471]
[1647012753651,1.56718,2584.6,2584.5,0.00159471]
[1647012753847,9.31178,2584.6,2584.5,0.00159471]
[1647012754146,9.31178,2584.6,2583.9,0.9936]
[1647012754147,10.26921,2584.6,2583.9,0.9936]
[1647012754452,0.96751,2584.5,2583.9,0.9936]
[1647012754651,1.9350286,2584.5,2584.4,0.00396724]
[1647012754848,9.31211,2584.5,2584.4,0.00396724]
[1647012755098,10.31211,2584.5,2584.4,0.00396724]
[1647012755302,5.23528,2584.4,2583.1,0.49426553]
[1647012755503,5.23528,2584.4,2583.1,0.00523616]
[1647012755504,13.17028,2584.3,2583.1,0.00523616]
[1647012755701,0.85806017,2584.2,2583.1,0.00523616]
[1647012755905,2.90355,2583.5,2583.1,0.00523616]
[1647012756100,11.2346,2583.4,2583.1,0.00523616]
[1647012756301,0.96785,2583.3,2583.1,0.00523616]
[1647012756501,7.7346,2583.2,2583.1,0.00523616]
[1647012756900,8.78065343,2583.2,2583.1,0.00523616]
[1647012757900,9.74863343,2583.2,2583.1,0.00523616]
[1647012758752,9.74863343,2583.2,2583.0,0.01047232]
[1647012758753,13.54863343,2583.2,2583.0,0.01047232]
[1647012758952,3.5,2583.1,2583.0,0.01047232]
[1647012759152,11.2346,2583.1,2583.0,0.01047232]
[1647012759353,12.2026113,2583.1,2583.0,0.0142585]
[1647012759953,12.2126113,2583.1,2583.0,0.0142585]
[1647012760353,12.2026113,2583.1,2583.0,5.85e-05]
[1647012760558,14.2026113,2583.1,2582.5,0.0024116]
[1647012760754,0.3,2582.9,2582.5,0.0024116]
[1647012760954,7.7346,2582.8,2582.5,0.0024116]
[1647012761156,3.5,2582.7,2582.5,0.0024116]
[1647012761362,8.62074355,2582.6,2582.5,0.0024116]
[1647012761561,12.12074355,2582.6,2582.4,0.004862]
[1647012761757,12.12074355,2582.6,2582.1,0.0096464]
[1647012761758,3.5,2582.5,2582.1,0.0096464]
[1647012761958,1.0,2582.3,2582.1,0.0096464]
[1647012762158,7.7346,2582.2,2582.1,0.0096464]
[1647012762796,10.8975,2582.2,2582.1,0.0096464]
[1647012762997,9.00307,2582.2,2582.1,0.0096464]
[1647012763198,8.0346,2582.2,2582.1,0.0096464]
[1647012763405,7.7346,2582.2,2582.1,0.0096464]
[1647012764002,7.7346,2582.2,2582.0,1.93619]
[1647012764202,7.7346,2582.2,2581.6,0.0192928]
[1647012764805,7.7346,2582.2,2582.1,0.00678157]
[1647012765006,8.56900886,2582.2,2582.1,0.00678157]
[1647012765602,7.7346,2582.2,2582.1,0.00678157]
[1647012766845,7.7346,2582.2,2582.1,0.02607437]
[1647012770105,7.7346,2582.2,2582.1,0.0192928]
[1647012770308,7.7346,2582.2,2582.1,1.07378572]
[1647012771306,7.7346,2582.2,2582.1,4.57378572]
[1647012771707,7.7346,2582.2,2582.1,2.07378572]
[1647012772107,7.7346,2582.2,2582.1,1.07378572]
[1647012772816,7.7346,2582.2,2582.1,0.0192928]
[1647012773408,7.79860049,2582.2,2582.1,0.0192928]
[1647012775253,8.86145204,2582.2,2582.1,0.0192928]
[1647012775756,7.79860049,2582.2,2582.1,0.0192928]
[1647012776754,8.87360707,2582.2,2582.1,0.0192928]
[1647012778802,7.79860049,2582.2,2582.1,0.0192928]
[1647012783851,7.7346,2582.2,2582.1,0.0192928]
[1647012784249,7.7346,2582.2,2582.1,1.12676887]
[1647012784855,7.7346,2582.2,2582.1,0.0192928]
[1647012786215,7.73370396,2582.2,2582.1,0.0192928]